bitfinex/quotes_SOLUSD_20240827
["timestamp","ask_amount","ask_price","bid_price","bid_amount"]
[1724768643234,6.4537,154.95,154.9,1.29098761]
[1724768643435,32.13652536,155.01,154.9,1.29098761]
[1724768643741,6.4528,154.97,154.91,22.7179]
[1724768644046,6.4524,154.99,154.92,46.29081634]
[1724768644217,6.4524,154.99,154.93,1.2906494]
[1724768644813,6.4516,155.0,154.94,6.4662]
[1724768645046,6.4524,154.99,154.94,6.4662]
[1724768645435,6.4507,155.03,154.96,15.47]
[1724768645647,6.4504,155.03,154.97,7.75660759]
[1724768645848,6.4504,155.03,154.97,52.75660759]
[1724768646143,6.4498,155.05,154.97,52.75660759]
[1724768646332,6.4498,155.05,154.98,20.0]
[1724768646641,0.843649,155.06,155.0,21.1602]
[1724768646820,0.843649,155.06,155.01,1.29006421]
[1724768647019,0.843649,155.06,155.0,22.45030756]
[1724768647318,7.292749,155.06,155.0,22.45030756]
[1724768647519,0.843649,155.06,155.01,45.0]
[1724768647720,0.843649,155.06,155.02,1.28994296]
[1724768648432,0.843649,155.06,155.01,45.0]
[1724768649527,0.843649,155.06,155.01,46.2899334]
[1724768649944,0.843649,155.06,155.01,45.0]
[1724768650247,0.843649,155.06,155.0,21.1602]
[1724768650248,32.98017436,155.06,155.0,21.1602]
[1724768650538,0.843649,155.06,155.0,21.1602]
[1724768650718,6.4495,155.05,155.0,21.1602]
[1724768651120,0.843649,155.06,155.0,21.1602]
[1724768651121,32.98017436,155.06,155.0,21.1602]
[1724768651349,6.4495,155.05,155.0,21.1602]
[1724768651543,6.4499,155.04,155.0,21.1602]
[1724768651845,7.292749,155.06,155.0,21.1602]
[1724768652054,6.4495,155.05,155.0,21.1602]
[1724768652256,7.292949,155.06,155.0,21.1602]
[1724768652429,7.292949,155.06,155.01,1.28995626]
[1724768652748,7.292949,155.06,155.01,46.28995626]
[1724768652946,7.292949,155.06,155.01,45.0]
[1724768653122,0.843649,155.06,155.01,45.0]
[1724768653941,7.292749,155.06,155.0,21.1602]
[1724768654649,6.4495,155.05,155.0,21.1602]
[1724768655257,7.292749,155.06,155.0,21.1602]
[1724768656346,6.4497,155.05,155.0,21.1602]
[1724768656551,0.843649,155.06,155.0,21.1602]
[1724768657137,7.293049,155.06,155.0,21.1602]
[1724768657472,0.843649,155.06,155.01,1.29013342]
[1724768657763,0.843649,155.06,155.01,45.0]
[1724768657929,0.843649,155.06,155.01,46.28999886]
[1724768658136,0.843649,155.06,155.02,1.28999885]
[1724768658947,0.843649,155.06,155.04,15.1262]
[1724768659138,0.843649,155.06,155.05,46.2895733]
[1724768659950,0.843649,155.06,155.05,1.2895733]
[1724768660121,0.843649,155.06,155.05,46.2895733]
[1724768660325,0.843649,155.06,155.05,46.28966196]
[1724768661256,0.843649,155.06,155.05,45.0]
[1724768661439,0.843649,155.06,155.05,46.28966124]
[1724768662261,0.843649,155.06,155.04,15.1262]
[1724768662558,0.843649,155.06,155.04,16.41586163]
[1724768662926,0.843649,155.06,155.04,16.4159645]
[1724768665333,0.843649,155.06,155.05,1.28976537]
[1724768665534,0.843649,155.06,155.05,46.28976537]
[1724768666253,6.447,155.11,155.05,65.0]
[1724768666551,6.447,155.11,155.06,1.28963141]
[1724768666755,48.25082536,155.15,155.06,1.28963141]
[1724768667127,48.25082536,155.15,155.05,65.0]
[1724768667343,0.1,155.16,155.06,23.79196464]
[1724768667525,0.1,155.16,155.07,65.0]
[1724768667735,6.4457,155.15,155.08,1.28934004]
[1724768669450,6.4457,155.15,155.09,1.28932289]
[1724768669655,6.4459,155.14,155.09,1.28932289]
[1724768670028,6.4459,155.14,155.07,65.0]
[1724768670452,16.2127,155.16,155.07,20.0]
[1724768670637,6.4468,155.12,155.08,1.28951464]
[1724768670844,6.4459,155.14,155.07,21.28951361]
[1724768671041,6.4459,155.14,155.08,1.28937362]
[1724768671731,6.4456,155.15,155.08,46.28937362]
[1724768673231,6.4456,155.15,155.08,45.0]
[1724768673531,25.68043776,155.16,155.08,45.0]
[1724768673725,6.4458,155.14,155.08,45.0]
[1724768674156,6.4458,155.14,155.08,46.28934819]
[1724768674954,25.68043776,155.16,155.08,46.28934819]
[1724768675132,0.1,155.16,155.08,46.28934819]
[1724768675336,0.1,155.16,155.08,45.0]
[1724768675337,6.4457,155.15,155.08,45.0]
[1724768675750,6.4457,155.15,155.09,1.28931622]
[1724768676155,6.545,155.16,155.09,1.28931622]
[1724768676461,6.545,155.16,155.09,21.28931622]
[1724768676661,6.4454,155.15,155.09,20.0]
[1724768676868,6.4454,155.15,155.1,1.28938277]
[1724768677152,6.4454,155.15,155.09,20.0]
[1724768677734,0.1,155.16,155.09,20.0]
[1724768677735,0.1,155.16,155.1,67.2266]
[1724768678038,0.1,155.16,155.1,22.2266]
[1724768678238,0.1,155.16,155.11,1.28928218]
[1724768678444,6.5449,155.16,155.1,22.2266]
[1724768680047,6.5449,155.16,155.1,23.51588271]
[1724768680737,0.1,155.16,155.1,22.2266]
[1724768681340,6.5453,155.16,155.11,20.0]
[1724768681671,6.5453,155.16,155.1,22.2266]
[1724768683458,6.4457,155.14,155.1,6.1431]
[1724768683966,6.4454,155.15,155.1,6.1431]
[1724768684263,6.5449,155.16,155.1,6.1431]
[1724768684654,6.5449,155.16,155.11,1.28930792]
[1724768684892,0.1,155.16,155.11,1.28930792]
[1724768685244,6.545,155.16,155.11,1.28930792]
[1724768685446,6.4454,155.15,155.1,6.1431]
[1724768686065,0.1,155.16,155.11,1.28930869]
[1724768686266,0.1,155.16,155.11,46.28930869]
[1724768687544,0.1,155.16,155.11,45.0]
[1724768687744,6.5449,155.16,155.1,7.43229218]
[1724768687968,6.5449,155.16,155.1,6.1431]
[1724768688473,0.1,155.16,155.11,1.28930631]
[1724768689167,0.1,155.16,155.12,15.905]
[1724768690265,0.1,155.16,155.13,65.0]
[1724768690967,0.1,155.16,155.13,66.28896809]
[1724768691144,0.1,155.16,155.12,15.905]
[1724768691343,0.1,155.16,155.13,1.28919976]
[1724768691969,0.1,155.16,155.13,46.28919976]
[1724768692143,0.1,155.16,155.13,1.28919976]
[1724768693869,0.1,155.16,155.12,15.905]
[1724768694162,0.1,155.16,155.11,1.28910487]
[1724768694366,0.1,155.16,155.11,20.0]
[1724768696566,0.1,155.16,155.12,45.0]
[1724768696769,0.1,155.16,155.1,6.1431]
[1724768696945,6.4463,155.13,155.06,6.1978]
[1724768697147,45.1,155.16,155.06,6.1978]
[1724768697346,25.58043776,155.1,155.0,16.3511]
[1724768697547,25.58043776,155.08,155.0,16.3511]
[1724768698176,25.58043776,155.08,154.98,6.1978]
[1724768698549,25.58043776,155.08,154.99,1.29023992]
[1724768698957,6.4495,155.05,154.98,6.1978]
[1724768699367,6.449,155.07,154.99,1.29023966]
[1724768700052,6.4491,155.06,154.98,6.1978]
[1724768700260,6.4491,155.06,154.99,21.29013222]
[1724768700451,25.58043776,155.08,154.99,21.29013222]
[1724768700667,6.4494,155.06,154.99,21.29013222]
[1724768701960,6.4487,155.07,154.99,21.29013222]
[1724768702970,25.58043776,155.06,154.99,20.0]
[1724768703275,25.58043776,155.04,154.98,6.1978]
[1724768703972,6.4499,155.05,154.98,6.1978]
[1724768704158,25.58043776,155.04,154.96,15.8483]
[1724768704780,6.6392,155.08,154.96,15.8483]
[1724768704974,25.58043776,155.06,154.96,15.8483]
[1724768705480,6.4495,155.05,154.97,1.29014661]
[1724768705651,6.45,155.04,154.96,15.8483]
[1724768705851,6.4499,155.05,154.96,15.8483]
[1724768706055,25.58043776,155.06,154.94,21.5602]
[1724768706281,6.4504,155.03,154.95,1.2905027]
[1724768706470,6.4504,155.03,154.95,22.9061895]
[1724768706679,6.449,155.07,154.95,21.2905027]
[1724768706977,6.6392,155.08,154.96,27.19612275]
[1724768706978,32.21963776,155.08,154.96,27.19612275]
[1724768707172,32.21963776,155.08,154.97,20.0]
[1724768707403,25.58043776,155.08,154.98,1.29014559]
[1724768707580,25.58043776,155.08,154.98,46.29014559]
[1724768707891,6.4495,155.05,154.98,46.29014559]
[1724768708460,6.4491,155.06,154.98,46.29014559]
[1724768708796,6.4495,155.05,154.98,45.0]
[1724768709280,6.4495,155.05,154.97,20.0]
[1724768709788,6.449,155.07,154.97,21.29029415]
[1724768709973,6.4474,155.1,154.98,72.19571213]
[1724768710194,16.326,155.11,155.01,16.3822]
[1724768710482,6.4474,155.1,155.02,66.28984384]
[1724768710715,6.4483,155.08,155.02,20.0]
[1724768710858,6.4479,155.09,155.02,20.0]
[1724768711059,25.58043776,155.1,155.02,20.0]
[1724768711285,32.02793776,155.1,155.02,21.29002638]
[1724768711653,6.448,155.09,155.02,20.0]
[1724768711887,6.4474,155.11,155.03,1.29002641]
[1724768712180,6.4466,155.12,155.03,1.29002641]
[1724768712389,6.4471,155.11,155.03,46.29002641]
[1724768712684,6.4466,155.12,155.04,20.0]
[1724768712863,6.4471,155.11,155.04,20.0]
[1724768713184,41.13873776,155.15,155.04,20.0]
[1724768713389,6.4465,155.13,155.04,20.0]
[1724768713867,6.4466,155.12,155.03,46.29002641]
[1724768714188,6.4466,155.12,155.04,20.0]
[1724768714581,41.13873776,155.15,155.05,1.28982693]
[1724768714919,41.13873776,155.15,155.04,21.61471979]
[1724768715087,45.0,155.14,155.03,20.0]
[1724768715666,6.4477,155.1,155.03,20.0]
[1724768715884,6.4477,155.1,155.02,20.0]
[1724768716766,6.447,155.12,155.02,20.0]
[1724768716961,6.447,155.11,155.02,20.0]
[1724768717596,6.447,155.11,155.02,21.6149804]
[1724768717768,25.58043776,155.13,155.02,21.6149804]
[1724768717769,6.4465,155.13,155.03,46.2899008]
[1724768717973,51.4458,155.14,155.03,45.0]
[1724768718270,6.4458,155.14,155.03,45.0]
[1724768718475,15.5583,155.15,155.04,27.19517451]
[1724768718674,22.0036,155.15,155.05,66.28960506]
[1724768718879,22.0036,155.15,155.05,20.0]
[1724768718880,15.5583,155.15,155.05,20.0]
[1724768719089,15.5583,155.15,155.05,21.28974703]
[1724768719290,15.5583,155.15,155.05,20.0]
[1724768719590,22.004,155.15,155.06,45.0]
[1724768719910,22.004,155.15,155.01,16.3822]
[1724768719911,15.5583,155.15,155.01,16.3822]
[1724768720070,6.4466,155.12,155.02,20.0]
[1724768720273,6.4462,155.13,155.02,47.19538102]
[1724768720475,6.4462,155.13,155.03,1.61494326]
[1724768720695,6.4462,155.13,155.02,45.58043776]
[1724768720876,6.4462,155.13,155.03,1.61475808]
[1724768721077,6.4462,155.13,155.02,45.58043776]
[1724768721381,6.4458,155.14,155.03,46.61481309]
[1724768721596,0.1,155.16,155.06,25.58043776]
[1724768721778,0.1,155.16,155.07,1.28960301]
[1724768721978,6.4456,155.15,155.06,1.28960242]
[1724768722179,6.4456,155.15,155.06,46.28960242]
[1724768722374,6.4456,155.15,155.07,15.8596]
[1724768722580,0.1,155.16,155.1,25.58043776]
[1724768723195,0.1,155.16,155.12,6.6614]
[1724768725398,0.1,155.16,155.08,8.20273824]
[1724768725709,0.1,155.16,155.09,20.0]
[1724768727506,0.1,155.16,155.09,21.28937189]
[1724768728095,0.1,155.16,155.1,1.61412884]
[1724768728306,0.1,155.16,155.09,21.28937189]
[1724768728790,0.1,155.16,155.09,20.0]
[1724768730487,0.1,155.16,155.12,25.58043776]
[1724768730685,0.1,155.16,155.1,1.28938593]
[1724768730686,0.1,155.16,155.1,25.58043776]
[1724768730902,0.1,155.16,155.11,20.0]
[1724768731104,0.1,155.16,155.09,20.0]
[1724768733913,0.1,155.16,155.1,1.28942803]
[1724768734208,0.1,155.16,155.09,20.0]
[1724768735592,0.1,155.16,155.08,6.5883]
[1724768736294,0.1,155.16,155.08,7.87772599]
[1724768736496,0.1,155.16,155.09,26.86987442]
[1724768736711,0.1,155.16,155.09,25.58043776]
[1724768737195,0.1,155.16,155.1,20.0]
[1724768737898,0.1,155.16,155.13,25.58043776]
[1724768738105,0.1,155.16,155.14,65.0]
[1724768738706,0.1,155.16,155.14,66.28893219]
[1724768738897,0.1,155.16,155.15,25.58043776]
[1724768739098,0.1,155.16,155.15,45.58043776]
[1724768739798,0.1,155.16,155.15,21.28893249]
[1724768739997,0.1,155.16,155.15,46.86937025]
[1724768740189,0.1,155.16,155.15,45.58043776]
[1724768740389,0.1,155.16,155.15,20.0]
[1724768740789,0.1,155.16,155.15,21.28893129]
[1724768741086,0.1,155.16,155.15,32.21033776]
[1724768741306,0.1,155.16,155.15,98.49926879]
[1724768741503,0.1,155.16,155.15,97.21033776]
[1724768741717,0.1,155.16,155.15,52.21033776]
[1724768742014,0.1,155.16,155.15,26.6299]
[1724768743615,0.1,155.16,155.12,2.58981085]
[1724768743800,0.1,155.16,155.12,90.58043776]
[1724768744715,0.1,155.16,155.14,25.58043776]
[1724768746298,0.1,155.16,155.15,20.0]
[1724768747397,0.1,155.16,155.15,21.28884322]
[1724768748106,0.1,155.16,155.15,20.0]
[1724768748304,0.1,155.16,155.15,21.28884806]
[1724768748618,0.1,155.16,155.15,65.0]
[1724768750013,0.843649,155.22,155.15,65.0]
[1724768750234,0.843649,155.22,155.19,25.58043776]
[1724768750527,0.843649,155.22,155.16,45.0]
[1724768750528,0.843649,155.22,155.17,25.58043776]
[1724768750736,0.843649,155.22,155.18,20.0]
[1724768752826,0.843649,155.22,155.19,31.70423776]
[1724768757431,0.843649,155.22,155.19,25.58043776]
[1724768759420,0.843649,155.22,155.15,9.14338908]
[1724768759421,0.843649,155.22,155.15,28.11342684]
[1724768759626,0.843649,155.22,155.15,25.58043776]
[1724768759823,0.843649,155.22,155.19,25.58043776]
[1724768763846,0.843649,155.22,155.21,25.58043776]
[1724768764143,0.843649,155.22,155.21,45.58043776]
[1724768766236,0.843649,155.22,155.21,30.21316494]
[1724768766815,6.4383,155.32,155.21,43.21131471]
[1724768766816,16.2258,155.32,155.21,43.21131471]
[1724768767016,16.2258,155.32,155.29,10.21316494]
[1724768767935,16.2258,155.32,155.31,10.21316494]
[1724768768436,16.2258,155.32,155.28,25.50833944]
[1724768769024,22.590949,155.37,155.28,25.50833944]
[1724768769736,16.170149,155.37,155.3,25.50833944]
[1724768769935,16.170149,155.37,155.32,25.50833944]
[1724768771418,16.170149,155.37,155.29,1.28760481]
[1724768771617,16.170149,155.37,155.26,6.6281]
[1724768771618,16.170149,155.37,155.3,26.79594348]
[1724768771812,16.170149,155.37,155.28,25.50833944]
[1724768773232,16.170149,155.37,155.27,26.79604965]
[1724768773233,6.4366,155.36,155.27,26.79604965]
[1724768773432,16.170149,155.37,155.26,2.51196697]
[1724768773433,6.4379,155.33,155.26,2.51196697]
[1724768773641,6.4379,155.33,155.22,25.50833944]
[1724768774141,51.4807,155.35,155.2,40.61843944]
[1724768774142,16.197,155.3,155.2,40.61843944]
[1724768774317,16.197,155.3,155.21,1.61296041]
[1724768774515,16.197,155.3,155.2,25.50833944]
[1724768774730,6.501,155.29,155.18,25.50833944]
[1724768774981,6.501,155.29,155.19,1.61311731]
[1724768775437,6.501,155.29,155.2,26.79684177]
[1724768775622,6.501,155.29,155.22,25.50833944]
[1724768775815,6.501,155.29,155.23,1.28825062]
[1724768776018,6.501,155.29,155.22,25.50833944]
[1724768776241,6.501,155.29,155.23,1.61284077]
[1724768776547,6.501,155.29,155.22,25.50833944]
[1724768776917,6.501,155.29,155.23,1.28827562]
[1724768777443,6.501,155.29,155.22,25.50833944]
[1724768778012,16.197,155.3,155.24,25.50833944]
[1724768778215,16.197,155.3,155.24,26.79646129]
[1724768778436,16.197,155.3,155.24,25.50833944]
[1724768780253,16.197,155.3,155.2,25.50833944]
[1724768780423,16.197,155.3,155.21,21.61278064]
[1724768780613,16.197,155.3,155.21,22.90111318]
[1724768780830,22.6365,155.3,155.22,1.61278064]
[1724768781026,16.197,155.3,155.22,1.28845392]
[1724768781224,16.197,155.3,155.2,20.0]
[1724768781449,16.197,155.3,155.21,1.61279251]
[1724768781645,16.197,155.3,155.21,20.0]
[1724768781941,16.197,155.3,155.22,1.28833031]
[1724768782125,6.4396,155.29,155.21,21.61279251]
[1724768782330,6.4396,155.29,155.22,1.61270679]
[1724768782650,6.4396,155.29,155.2,1.61300475]
[1724768782825,6.4396,155.29,155.19,21.61300475]
[1724768783844,6.4396,155.29,155.2,1.61312592]
[1724768784048,6.4396,155.29,155.19,21.61312592]
[1724768784344,6.4396,155.29,155.19,22.90166248]
[1724768784530,6.4396,155.29,155.2,1.61312592]
[1724768785051,6.4396,155.29,155.21,1.61312592]
[1724768785258,16.197,155.3,155.21,1.28845931]
[1724768785626,16.197,155.3,155.21,22.90158523]
[1724768785926,16.197,155.3,155.22,1.61312592]
[1724768786349,16.197,155.3,155.23,1.28832577]
[1724768787166,16.197,155.3,155.24,25.50833944]
[1724768787333,6.3855,155.33,155.25,2.90087947]
[1724768787858,6.3855,155.33,155.25,22.90087947]
[1724768788061,6.3855,155.33,155.25,21.2880384]
[1724768788354,6.3855,155.33,155.26,1.61256831]
[1724768788552,6.3855,155.33,155.25,21.2880384]
[1724768788758,6.3855,155.33,155.25,1.2880384]
[1724768788950,6.3855,155.33,155.25,22.90063951]
[1724768789154,6.3855,155.33,155.25,21.2880384]
[1724768790138,6.3855,155.33,155.25,20.0]
[1724768790337,6.3855,155.33,155.25,21.61262231]
[1724768791835,6.3855,155.33,155.25,22.90061505]
[1724768792133,6.3855,155.33,155.25,21.28799274]
[1724768792549,6.3855,155.33,155.26,1.61262391]
[1724768793165,6.3855,155.33,155.25,20.0]
[1724768793366,6.3855,155.33,155.25,21.61258996]
[1724768793658,6.3855,155.33,155.26,1.28799036]
[1724768793874,6.3855,155.33,155.26,2.90058032]
[1724768794046,6.3855,155.33,155.26,1.61258996]
[1724768794246,6.3855,155.33,155.25,21.61258996]
[1724768794866,6.3855,155.33,155.26,1.61258996]
[1724768795066,6.3855,155.33,155.25,21.61258996]
[1724768795248,6.3855,155.33,155.26,1.28798982]
[1724768795455,6.3855,155.33,155.26,2.90057978]
[1724768795849,6.3855,155.33,155.26,1.61258996]
[1724768796056,6.4386,155.32,155.24,1.61258996]
[1724768796262,6.4386,155.32,155.25,1.61258996]
[1724768796466,6.3855,155.33,155.24,1.61258996]
[1724768796650,6.3855,155.33,155.25,1.61258996]
[1724768797053,6.3855,155.33,155.26,1.61258996]
[1724768797264,6.3855,155.33,155.25,1.61258996]
[1724768797569,6.3855,155.33,155.26,1.61258996]
[1724768797770,6.3855,155.33,155.25,1.61258996]
[1724768797970,6.3855,155.33,155.26,2.90064191]
[1724768798171,15.8152,155.34,155.27,1.28798699]
[1724768798376,15.8152,155.34,155.28,25.50833944]
[1724768798580,15.8152,155.34,155.27,1.28798699]
[1724768798752,15.8152,155.34,155.27,20.0]
[1724768799856,15.8152,155.34,155.28,1.61241971]
[1724768800061,15.8152,155.34,155.27,21.28801148]
[1724768800269,15.8152,155.34,155.28,1.6124422]
[1724768800651,15.8152,155.34,155.27,21.28801148]
[1724768800846,15.8152,155.34,155.27,1.28801148]
[1724768801052,15.8152,155.34,155.27,2.90054698]
[1724768801252,15.8152,155.34,155.27,22.90054698]
[1724768801452,15.8152,155.34,155.27,21.28801148]
[1724768801664,15.8152,155.34,155.27,20.0]
[1724768801873,15.8152,155.34,155.27,1.61257685]
[1724768802076,6.4379,155.33,155.25,1.61262122]
[1724768802284,6.4379,155.33,155.26,1.61262122]
[1724768802471,22.2527,155.34,155.27,1.61262122]
[1724768802789,22.2527,155.34,155.26,1.61262122]
[1724768802958,22.2527,155.34,155.27,1.61262122]
[1724768803158,22.2527,155.34,155.25,1.61262122]
[1724768803382,22.2527,155.34,155.24,25.50833944]
[1724768803565,22.2527,155.34,155.25,2.90056924]
[1724768803763,15.8152,155.34,155.26,1.61255604]
[1724768803977,15.8152,155.34,155.27,2.90053884]
[1724768804183,15.8152,155.34,155.27,1.2879828]
[1724768808169,15.8152,155.34,155.28,25.50833944]
[1724768808690,15.8152,155.34,155.27,20.0]
[1724768808863,15.8152,155.34,155.25,20.0]
[1724768809673,6.4379,155.33,155.25,20.0]
[1724768809880,6.4383,155.32,155.25,20.0]
[1724768810182,6.4383,155.32,155.22,25.50833944]
[1724768810490,6.4383,155.32,155.23,6.73699309]
[1724768810680,22.253,155.34,155.24,25.50833944]
[1724768811060,22.2528,155.34,155.24,25.50833944]
[1724768811284,22.2528,155.34,155.25,1.61253548]
[1724768812074,6.438,155.33,155.25,1.61253548]
[1724768812680,22.2527,155.34,155.25,1.61253548]
[1724768813189,6.4379,155.33,155.25,1.61253548]
[1724768813391,6.4379,155.33,155.26,1.61253548]
[1724768813583,6.4379,155.33,155.25,3.40788283]
[1724768814375,6.4383,155.32,155.22,31.52693268]
[1724768814577,6.4383,155.32,155.23,20.0]
[1724768814970,6.4383,155.32,155.23,26.02059495]
[1724768815890,6.4385,155.32,155.23,26.02059495]
[1724768816795,6.4379,155.33,155.23,26.02059495]
[1724768816971,15.8152,155.34,155.24,32.81712717]
[1724768817176,15.8152,155.34,155.26,25.50833944]
[1724768817385,7.220749,155.37,155.28,25.50833944]
[1724768819004,13.656949,155.37,155.28,25.50833944]
[1724768819204,7.220749,155.37,155.28,26.79614118]
[1724768819799,7.220749,155.37,155.28,25.50833944]
[1724768820184,7.220749,155.37,155.28,26.79613841]
[1724768820380,7.220749,155.37,155.28,25.50833944]
[1724768820581,7.220749,155.37,155.28,26.79613987]
[1724768820900,0.843649,155.37,155.28,26.79613987]
[1724768821281,0.843649,155.37,155.28,25.50833944]
[1724768821485,0.843649,155.37,155.28,31.52068876]
[1724768821692,7.280149,155.37,155.28,31.52068876]
[1724768821898,7.280149,155.37,155.27,22.9147]
[1724768822082,6.4369,155.36,155.27,28.92782304]
[1724768822604,6.4369,155.36,155.27,30.21572709]
[1724768822902,7.279949,155.37,155.27,30.21572709]
[1724768823285,7.279949,155.37,155.27,28.92782304]
[1724768823480,7.279949,155.37,155.27,24.20253901]
[1724768823684,7.279949,155.37,155.27,30.2131671]
[1724768823888,6.4367,155.36,155.27,30.2131671]
[1724768824094,6.4367,155.36,155.27,28.92532809]
[1724768824295,6.4371,155.35,155.27,28.92532809]
[1724768824499,6.4367,155.36,155.27,28.92532809]
[1724768824806,6.4371,155.35,155.27,28.92532809]
[1724768825205,6.4367,155.36,155.27,22.9147]
[1724768825403,6.4367,155.36,155.27,6.4192]
[1724768825613,6.4386,155.32,155.25,6.01363715]
[1724768825783,6.4386,155.32,155.23,28.4485815]
[1724768825784,22.2371,155.32,155.24,6.01363715]
[1724768825983,22.2371,155.32,155.23,28.4485815]
[1724768826479,6.4395,155.29,155.19,21.3883]
[1724768827100,15.7987,155.32,155.19,6.0671]
[1724768827287,6.1356,155.35,155.15,15.3212]
[1724768827288,25.50833944,155.27,155.15,21.5077]
[1724768827483,16.2663,155.26,155.15,21.5077]
[1724768827705,16.2663,155.26,155.15,22.79652381]
[1724768828306,16.2663,155.26,155.16,25.50833944]
[1724768828503,16.2663,155.26,155.17,1.28866577]
[1724768828895,16.2663,155.26,155.16,25.50833944]
[1724768829096,16.2663,155.26,155.15,21.5077]
[1724768829304,22.7071,155.26,155.15,21.5077]
[1724768829605,31.94973944,155.25,155.15,21.5077]
[1724768830108,16.2663,155.26,155.16,25.50833944]
[1724768830283,16.2663,155.26,155.17,1.28868154]
[1724768830610,15.2701,155.3,155.19,25.50833944]
[1724768830787,15.2701,155.3,155.21,25.50833944]
[1724768831114,15.2701,155.3,155.23,25.50833944]
[1724768831804,22.4042,155.36,155.23,25.50833944]
[1724768831805,16.4681,155.34,155.23,1.28820765]
[1724768831986,16.4681,155.34,155.25,25.50833944]
[1724768834414,22.9055,155.34,155.25,25.50833944]
[1724768835402,22.9055,155.34,155.24,1.28820765]
[1724768835598,22.9055,155.34,155.24,20.0]
[1724768836382,6.4386,155.32,155.22,16.5533]
[1724768836594,6.4386,155.32,155.23,20.0]
[1724768838510,6.4392,155.3,155.22,20.0]
[1724768838809,31.94653944,155.33,155.21,25.50833944]
[1724768839011,31.94653944,155.33,155.22,21.28829063]
[1724768839403,22.9056,155.34,155.23,26.7966319]
[1724768839614,16.4681,155.34,155.25,25.50833944]
[1724768840195,16.4681,155.34,155.26,1.2880089]
[1724768840498,7.279949,155.37,155.27,25.50833944]
[1724768840698,7.279949,155.37,155.26,1.2880089]
[1724768840699,0.843649,155.37,155.29,25.50833944]
[1724768841322,0.843649,155.37,155.28,1.28788971]
[1724768841614,7.279849,155.37,155.27,45.50833944]
[1724768841820,0.843649,155.37,155.28,1.28780122]
[1724768844406,0.843649,155.37,155.27,45.50833944]
[1724768844709,7.279849,155.37,155.27,45.50833944]
[1724768845012,7.279849,155.37,155.28,1.28778932]
[1724768845201,0.843649,155.37,155.28,1.28778932]
[1724768846422,0.843649,155.37,155.29,25.50833944]
[1724768847918,0.843649,155.37,155.3,1.28770132]
[1724768848218,0.843649,155.37,155.29,25.50833944]
[1724768848937,7.279849,155.37,155.27,45.50833944]
[1724768849094,7.279849,155.37,155.28,1.28783118]
[1724768849295,7.279849,155.37,155.28,1.28783071]
[1724768849792,0.843649,155.37,155.28,1.28783071]
[1724768852524,0.843649,155.37,155.29,25.50833944]
[1724768852898,0.843649,155.37,155.3,1.28773748]
[1724768854831,0.843649,155.37,155.31,25.50833944]
[1724768855041,0.843649,155.37,155.33,25.50833944]
[1724768855497,0.843649,155.37,155.34,1.28739657]
[1724768856611,0.843649,155.37,155.35,25.50833944]
[1724768857805,0.843649,155.37,155.36,1.28726352]
[1724768858517,0.843649,155.37,155.35,25.50833944]
[1724768859323,0.843649,155.37,155.36,1.28707757]
[1724768860129,0.843649,155.37,155.35,25.50833944]
[1724768862039,0.843649,155.37,155.36,1.28719664]
[1724768864009,0.843649,155.37,155.35,25.50833944]
[1724768864621,0.843649,155.37,155.36,1.2871953]
[1724768865228,0.843649,155.37,155.35,25.50833944]
[1724768866530,0.843649,155.37,155.36,1.28713701]
[1724768867629,0.843649,155.37,155.36,21.28713701]
[1724768868846,0.843649,155.37,155.36,66.28713701]
[1724768869053,0.843649,155.37,155.36,21.28713701]
[1724768869653,0.843649,155.37,155.36,23.83456562]
[1724768869856,16.138,155.46,155.36,68.83456562]
[1724768870036,16.138,155.46,155.39,25.50833944]
[1724768870953,16.138,155.46,155.4,1.28680934]